bitfinex/quotes_SOLUSD_20250619
["timestamp","ask_amount","ask_price","bid_price","bid_amount"]
[1750319333151,26.84409326,145.52,145.48,15.06824148]
[1750319333331,9.930392,145.51,145.48,15.06824148]
[1750319333542,5.1323318,145.5,145.48,15.06824148]
[1750319333748,26.84409326,145.52,145.48,15.06824148]
[1750319333946,9.92818434,145.51,145.48,15.06824148]
[1750319334154,9.92818434,145.5,145.48,15.06824148]
[1750319334450,5.13128223,145.49,145.48,15.06824148]
[1750319339135,54.54409326,145.52,145.48,15.06824148]
[1750319339351,9.92025709,145.51,145.49,8.1944444]
[1750319339553,5.12847609,145.5,145.49,8.1944444]
[1750319339870,5.12847609,145.5,145.48,32.25273419]
[1750319340068,27.7,145.52,145.48,32.25273419]
[1750319340274,9.91989471,145.51,145.48,32.25273419]
[1750319340477,9.92013386,145.5,145.48,32.25273419]
[1750319340692,5.12808786,145.49,145.48,32.25273419]
[1750319341840,35.8944444,145.52,145.48,32.25273419]
[1750319342047,9.91897491,145.51,145.48,32.25273419]
[1750319342376,35.8944444,145.52,145.48,32.25273419]
[1750319342377,5.128711,145.5,145.48,32.25273419]
[1750319342544,35.8944444,145.52,145.48,32.25273419]
[1750319342741,9.91857257,145.51,145.48,32.25273419]
[1750319342976,9.91857257,145.5,145.48,32.25273419]
[1750319343282,5.12835194,145.49,145.48,32.25273419]
[1750319346844,5.12835194,145.49,145.48,5.24187673]
[1750319347152,5.24187673,145.52,145.48,5.24187673]
[1750319347361,9.91962275,145.51,145.48,5.24187673]
[1750319347565,9.91962275,145.5,145.48,5.24187673]
[1750319347870,5.12803442,145.49,145.48,5.24187673]
[1750319349049,5.12803442,145.49,145.48,12.11567381]
[1750319350176,5.12803442,145.49,145.48,6.87379708]
[1750319350685,9.91992157,145.49,145.47,6.87418705]
[1750319350982,5.12803442,145.48,145.47,6.87418705]
[1750319355454,18.64964886,145.47,145.43,88.2]
[1750319355654,5.24187673,145.45,145.42,6.8766332]
[1750319355866,9.92478827,145.44,145.42,12.11850993]
[1750319356165,5.24187673,145.46,145.42,12.11850993]
[1750319356349,9.92357556,145.45,145.42,12.11850993]
[1750319356554,5.13050164,145.44,145.42,12.11850993]
[1750319356774,5.24187673,145.46,145.42,12.11850993]
[1750319356955,9.92179971,145.45,145.42,12.11850993]
[1750319357156,5.12862136,145.44,145.42,12.11850993]
[1750319357466,5.24187673,145.46,145.42,12.11850993]
[1750319357467,4.79350276,145.45,145.42,12.11850993]
[1750319357675,5.24187673,145.46,145.42,12.11850993]
[1750319357980,9.92034001,145.45,145.42,12.11850993]
[1750319358157,31.24187673,145.47,145.43,5.24187673]
[1750319358477,31.24187673,145.47,145.42,24.0682162]
[1750319358478,9.92117901,145.46,145.44,5.24187673]
[1750319358679,26.0,145.47,145.44,5.24187673]
[1750319358983,9.92118837,145.46,145.44,8.19528783]
[1750319359165,26.0,145.47,145.44,8.19528783]
[1750319359349,9.92124819,145.46,145.44,8.19528783]
[1750319359554,61.89528783,145.49,145.45,8.19528783]
[1750319359774,9.92168854,145.48,145.46,6.87474219]
[1750319359967,5.12764363,145.47,145.46,6.87474219]
[1750319360870,5.12764363,145.47,145.45,6.87521485]
[1750319361180,4.79375073,145.48,145.45,6.87521485]
[1750319361381,5.12747175,145.47,145.45,6.87521485]
[1750319361593,4.79376722,145.48,145.45,6.87521485]
[1750319361769,5.12745335,145.47,145.45,6.87521485]
[1750319361969,4.79397584,145.48,145.45,6.87521485]
[1750319362169,5.12777228,145.47,145.45,6.87521485]
[1750319362356,4.79398774,145.48,145.45,6.87521485]
[1750319362556,5.12774864,145.47,145.45,6.87521485]
[1750319362896,4.79400015,145.48,145.45,6.87521485]
[1750319363055,5.12777482,145.47,145.45,6.87521485]
[1750319363255,4.79404753,145.48,145.45,6.87521485]
[1750319363490,5.12777482,145.47,145.45,6.87521485]
[1750319363670,4.79404753,145.48,145.45,6.87521485]
[1750319363877,5.12772852,145.47,145.45,6.87521485]
[1750319364188,4.79396021,145.48,145.45,6.87521485]
[1750319364393,5.12772852,145.47,145.45,6.87521485]
[1750319364566,61.89528783,145.49,145.45,6.87521485]
[1750319364884,18.11686185,145.48,145.45,6.87521485]
[1750319365086,9.92157402,145.47,145.45,6.87521485]
[1750319365290,5.12764794,145.46,145.45,6.87521485]
[1750319365666,9.92950367,145.46,145.45,6.87521485]
[1750319366110,5.12764794,145.46,145.45,6.87521485]
[1750319368388,5.12764794,145.46,145.45,15.07050268]
[1750319368791,61.89528783,145.49,145.45,15.07050268]
[1750319368975,9.92669619,145.48,145.45,15.07050268]
[1750319369287,9.92669619,145.47,145.45,15.07050268]
[1750319369494,61.89528783,145.49,145.45,15.07050268]
[1750319369664,9.92095239,145.48,145.45,15.07050268]
[1750319369883,34.19528783,145.51,145.46,8.19528783]
[1750319370093,37.62118558,145.5,145.46,8.19528783]
[1750319370297,9.92118558,145.49,145.46,8.19528783]
[1750319370613,5.12666554,145.48,145.46,8.19528783]
[1750319370786,4.79490921,145.5,145.46,8.19528783]
[1750319370986,9.92166864,145.49,145.46,8.19528783]
[1750319371195,5.12675943,145.48,145.46,8.19528783]
[1750319371427,4.79494021,145.5,145.47,6.8742696]
[1750319371594,9.92340223,145.49,145.47,6.8742696]
[1750319371912,5.12663673,145.48,145.47,6.8742696]
[1750319372710,9.92374147,145.48,145.47,6.8742696]
[1750319373594,9.92357354,145.48,145.47,6.8742696]
[1750319377324,5.12663673,145.48,145.47,6.8742696]
[1750319377532,9.91744282,145.48,145.47,6.8742696]
[1750319381036,5.12663673,145.48,145.46,5.2433928]
[1750319381237,5.2433928,145.5,145.46,5.2433928]
[1750319381436,9.92055818,145.49,145.46,5.2433928]
[1750319381739,5.12729208,145.48,145.46,5.2433928]
[1750319381907,4.79329702,145.49,145.46,5.2433928]
[1750319382109,5.12748558,145.48,145.46,5.2433928]
[1750319382333,4.79327201,145.49,145.46,5.2433928]
[1750319382635,5.12748352,145.48,145.46,5.2433928]
[1750319382939,4.79225187,145.49,145.46,5.2433928]
[1750319383238,5.12623696,145.48,145.47,6.8742696]
[1750319384832,9.91893726,145.48,145.47,6.8742696]
[1750319385043,9.91968294,145.48,145.46,6.87474219]
[1750319385246,5.12698264,145.47,145.46,6.87474219]
[1750319386350,4.77766705,145.48,145.46,12.11813499]
[1750319386525,5.2433928,145.5,145.46,12.11813499]
[1750319386526,4.77782652,145.49,145.46,12.11813499]
[1750319386730,5.12893019,145.48,145.46,12.11813499]
[1750319386927,4.77826341,145.5,145.46,12.11813499]
[1750319387128,9.90748256,145.49,145.46,12.11813499]
[1750319387335,5.12921915,145.48,145.46,12.11813499]
[1750319387535,4.77846535,145.5,145.46,12.11813499]
[1750319387737,9.90797945,145.49,145.46,12.11813499]
[1750319387929,5.1295141,145.48,145.46,12.11813499]
[1750319388130,4.77846535,145.5,145.46,12.11813499]
[1750319388332,9.90808253,145.49,145.46,12.11813499]
[1750319388547,5.12961437,145.48,145.46,12.11813499]
[1750319388748,4.77886303,145.5,145.46,12.11813499]
[1750319388949,9.90883161,145.49,145.46,12.11813499]
[1750319389142,5.12996858,145.48,145.46,12.11813499]
[1750319389452,4.7788642,145.5,145.47,5.2433928]
[1750319389659,9.90904131,145.49,145.47,5.2433928]
[1750319389827,9.90888012,145.48,145.46,6.87474219]
[1750319390031,5.2433928,145.49,145.46,6.87474219]
[1750319390032,5.12999155,145.47,145.46,6.87474219]
[1750319390536,9.90917399,145.47,145.45,5.2433928]
[1750319390866,5.1300579,145.46,145.45,5.2433928]
[1750319391746,5.1300579,145.46,145.45,12.11860765]
[1750319392140,5.1300579,145.46,145.44,6.87547253]
[1750319392344,18.64964886,145.48,145.44,6.87547253]
[1750319392545,15.15375249,145.47,145.44,6.87547253]
[1750319392748,9.91035969,145.46,145.44,6.87547253]
[1750319392945,9.91061139,145.45,145.44,6.87547253]
[1750319394964,9.91033483,145.45,145.44,6.87547253]
[1750319395754,9.91757521,145.45,145.44,6.87547253]
[1750319395950,9.91757521,145.45,145.44,8.19662851]
[1750319396666,9.91757521,145.45,145.43,8.19662851]
[1750319396866,5.13007581,145.44,145.43,8.19662851]
[1750319397071,4.78779542,145.46,145.43,8.19662851]
[1750319397244,9.91816736,145.45,145.43,8.19662851]
[1750319397444,35.91662851,145.47,145.43,8.19662851]
[1750319397645,18.1142953,145.46,145.42,8.19662851]
[1750319397955,9.91766552,145.45,145.42,8.19662851]
[1750319398141,5.13037345,145.44,145.43,15.07278886]
[1750319401380,5.13037345,145.44,145.43,6.87616035]
[1750319401970,5.13037345,145.44,145.43,15.07278886]
[1750319404989,4.79112094,145.46,145.43,15.07278886]
[1750319405192,5.13156739,145.45,145.44,8.19662851]
[1750319406179,5.13156739,145.45,145.44,15.07231607]
[1750319413972,4.78339276,145.47,145.44,32.26153499]
[1750319414182,5.12862205,145.46,145.44,24.06490648]
[1750319414383,4.78342442,145.48,145.45,8.19662851]
[1750319414688,9.91204948,145.47,145.45,8.19662851]
[1750319414893,5.12862506,145.46,145.45,5.24451617]
[1750319415801,5.12862506,145.46,145.45,12.11973102]
[1750319420988,5.12862506,145.46,145.45,6.87521485]
[1750319421194,5.12862506,145.46,145.45,12.11973102]
[1750319426514,4.78535395,145.48,145.45,12.11973102]
[1750319426809,9.91683103,145.47,145.45,12.11973102]
[1750319426983,5.13135963,145.46,145.45,12.11973102]
[1750319427408,5.13135963,145.46,145.45,6.87521485]
[1750319427785,9.91661688,145.46,145.45,6.87521485]
[1750319428286,9.91661688,145.46,145.45,12.11973102]
[1750319428506,5.13135963,145.46,145.45,12.11973102]
[1750319429006,9.91811343,145.46,145.45,12.11973102]
[1750319429209,9.91811343,145.46,145.45,6.87521485]
[1750319430423,15.1626296,145.46,145.42,110.63594495]
[1750319430726,9.91811343,145.45,145.42,22.43594495]
[1750319431022,5.13135963,145.44,145.42,6.87643185]
[1750319431226,5.24451617,145.45,145.42,6.87643185]
[1750319431415,9.92429088,145.44,145.42,6.87643185]
[1750319431617,6.41201796,145.47,145.42,6.87643185]
[1750319431618,5.13383733,145.43,145.42,6.87643185]
[1750319433022,5.13383733,145.43,145.4,24.07143607]
[1750319433328,5.24451617,145.45,145.41,5.24451617]
[1750319433531,9.92699145,145.44,145.41,5.24451617]
[1750319433699,5.13521397,145.43,145.41,5.24451617]
[1750319433899,5.24451617,145.45,145.41,5.24451617]
[1750319434099,9.92780183,145.44,145.42,6.8766332]
[1750319434302,5.13580449,145.43,145.42,6.8766332]
[1750319435443,5.13580449,145.43,145.42,12.12114937]
[1750319436033,4.79575072,145.45,145.42,12.12114937]
[1750319436206,27.7,145.46,145.44,5.24451617]
[1750319436407,5.14029418,145.45,145.44,5.24451617]
[1750319437032,6.41201796,145.49,145.44,5.24451617]
[1750319437228,9.94657216,145.48,145.46,5.24451617]
[1750319437538,9.94657216,145.47,145.46,5.24451617]
[1750319437741,9.94657216,145.47,145.45,5.24451617]
[1750319437935,5.14246293,145.46,145.45,5.24451617]
[1750319438713,5.14246293,145.46,145.45,12.11973102]
[1750319442022,4.79883889,145.48,145.45,12.11973102]
[1750319442345,5.14371615,145.47,145.45,6.87521485]
[1750319442557,6.41201796,145.5,145.45,24.06325197]
[1750319442721,9.94224273,145.49,145.45,24.06325197]
[1750319442916,9.94224273,145.48,145.45,24.06325197]
[1750319443238,5.14346435,145.47,145.45,24.06325197]
[1750319443419,6.41201796,145.51,145.45,24.06325197]
[1750319443738,9.94127292,145.5,145.48,5.24451617]
[1750319443939,9.94127292,145.49,145.48,12.11831325]
[1750319445150,9.94127292,145.49,145.46,6.87474219]
[1750319445451,9.94127292,145.48,145.47,5.24451617]
[1750319446251,9.94127292,145.48,145.47,12.11878577]
[1750319446456,9.94127292,145.48,145.46,12.11909907]
[1750319446623,9.94127292,145.47,145.46,12.11909907]
[1750319447857,9.94127292,145.47,145.45,5.24451617]
[1750319448065,5.14343506,145.46,145.45,5.24451617]
[1750319451845,5.14194979,145.47,145.46,12.11925836]
[1750319452653,4.79351003,145.5,145.46,12.11925836]
[1750319452961,9.93464291,145.49,145.47,5.24451617]
[1750319453165,11.6719534,145.51,145.47,5.24451617]
[1750319453166,9.93464291,145.48,145.47,5.24451617]
[1750319454569,5.14113288,145.48,145.47,12.11878577]
[1750319454778,9.93484041,145.48,145.47,12.11878577]
[1750319455586,9.93484041,145.48,145.43,24.06656123]
[1750319455744,5.24451617,145.49,145.43,29.3110774]
[1750319455745,15.17935658,145.47,145.43,29.3110774]
[1750319455945,9.93476664,145.46,145.43,29.3110774]
[1750319456242,5.14113288,145.45,145.43,29.3110774]
[1750319456433,32.94451617,145.48,145.43,29.3110774]
[1750319456631,9.93456468,145.47,145.43,29.3110774]
[1750319456875,9.93456468,145.46,145.43,25.38667966]
[1750319457060,5.1410325,145.45,145.43,25.38667966]
[1750319457267,42.32371601,145.48,145.43,25.38667966]
[1750319457470,9.93458906,145.47,145.43,25.38667966]
[1750319457639,9.93458906,145.46,145.43,25.38667966]
[1750319457965,5.14101268,145.45,145.43,32.26284001]
[1750319458171,8.19627878,145.47,145.43,32.26284001]
[1750319458347,9.93651196,145.46,145.43,32.26284001]
[1750319458666,5.14171672,145.45,145.43,32.26284001]
[1750319458840,8.19627878,145.47,145.43,32.26284001]
[1750319459041,9.93783105,145.46,145.43,32.26284001]
[1750319459345,5.1427194,145.45,145.43,32.26284001]
[1750319459556,8.19627878,145.47,145.43,32.26284001]
[1750319459873,9.93789329,145.46,145.44,8.19627878]
[1750319460086,5.14263995,145.45,145.44,8.19627878]
[1750319460978,4.79727645,145.47,145.44,8.19627878]
[1750319461288,27.7,145.48,145.45,8.19627878]
[1750319461289,5.14477199,145.46,145.45,8.19627878]
[1750319462284,5.14477199,145.46,145.45,15.07149363]
[1750319464580,4.80443953,145.48,145.45,32.25953075]
[1750319464784,5.14595368,145.47,145.45,24.06325197]
[1750319465083,6.42743723,145.51,145.45,24.06325197]
[1750319465278,9.95035895,145.5,145.45,24.06325197]
[1750319465479,9.95012517,145.49,145.42,58.4513822]
[1750319465778,9.95012517,145.48,145.42,146.6513822]
[1750319465981,6.42743723,145.51,145.47,8.19627878]
[1750319466155,9.94983814,145.5,145.47,8.19627878]
[1750319466355,9.94983814,145.49,145.47,8.19627878]
[1750319466573,9.94983814,145.48,145.47,8.19627878]
[1750319466979,9.94983814,145.48,145.42,146.6513822]
[1750319467165,5.14588316,145.47,145.46,8.19627878]
[1750319467561,5.14588316,145.47,145.46,15.07102097]
[1750319470274,4.80056719,145.5,145.46,32.25787646]
[1750319470493,9.94524519,145.49,145.47,8.19627878]
[1750319470684,5.144678,145.48,145.47,8.19627878]
[1750319470882,4.80057776,145.51,145.47,8.19627878]
[1750319471081,9.94473249,145.5,145.47,8.19627878]
[1750319471299,9.94473249,145.49,145.47,8.19627878]
[1750319471601,8.19627878,145.51,145.47,8.19627878]
[1750319471784,9.94331366,145.5,145.48,6.87379708]
[1750319471983,8.19627878,145.51,145.48,6.87379708]
[1750319471984,5.14367764,145.49,145.48,6.87379708]
[1750319472493,9.9433128,145.49,145.48,6.87379708]
[1750319473697,9.94341678,145.49,145.48,6.87379708]
[1750319473869,9.94341678,145.49,145.47,6.8742696]
[1750319474079,5.14367764,145.48,145.47,6.8742696]
[1750319474787,9.94329609,145.48,145.47,6.8742696]
[1750319475191,18.13957487,145.48,145.45,6.87521485]
[1750319475383,18.13957487,145.47,145.45,6.87521485]
[1750319475599,5.14367764,145.46,145.45,6.87521485]
[1750319475898,9.94473116,145.46,145.44,6.87568756]
[1750319476090,5.14367764,145.45,145.44,6.87568756]
[1750319480810,5.14367764,145.45,145.43,5.24566083]
[1750319481003,5.24566083,145.47,145.43,5.24566083]
[1750319481306,9.93297628,145.46,145.43,5.24566083]
[1750319481611,5.14477478,145.45,145.43,5.24566083]
[1750319481910,5.24566083,145.47,145.43,5.24566083]
[1750319482107,9.93275682,145.46,145.43,5.24566083]
[1750319482302,5.1446526,145.45,145.43,5.24566083]
[1750319482495,18.64964886,145.48,145.44,5.24566083]
[1750319482703,9.93285891,145.47,145.44,5.24566083]
[1750319482924,9.93285891,145.46,145.44,5.24566083]
[1750319483095,23.89530969,145.48,145.45,6.87521485]
[1750319483402,9.93285811,145.47,145.45,6.87521485]
[1750319483605,9.93285811,145.46,145.45,6.87521485]
[1750319484716,9.93285811,145.46,145.45,12.12087568]
[1750319484905,5.14481131,145.46,145.45,12.12087568]
[1750319485431,5.24566083,145.5,145.45,29.3089128]
[1750319485432,4.78425109,145.48,145.45,29.3089128]
[1750319485589,6.42743723,145.51,145.47,5.24566083]
[1750319485789,9.9267253,145.5,145.48,5.24566083]
[1750319485993,9.9267253,145.49,145.48,5.24566083]
[1750319486301,9.9267253,145.49,145.47,5.24566083]
[1750319486497,11.67309806,145.52,145.48,6.87379708]
[1750319486718,9.92556965,145.51,145.48,6.87379708]
[1750319486915,9.92556965,145.5,145.48,6.87379708]
[1750319487116,9.92556965,145.49,145.48,6.87379708]
[1750319488906,9.92556965,145.49,145.47,8.19155523]
[1750319489125,5.14230559,145.48,145.47,8.19155523]
[1750319490317,5.14230559,145.48,145.47,15.06582483]
[1750319491411,5.14230559,145.48,145.47,6.8742696]
[1750319492014,9.92087631,145.48,145.47,6.8742696]
[1750319492426,5.14230559,145.48,145.46,6.87474219]
[1750319492601,8.19155523,145.5,145.46,15.06629742]
[1750319492921,9.91599522,145.49,145.46,15.06629742]
[1750319493224,9.91599522,145.48,145.47,8.19155523]
[1750319494131,9.91599522,145.48,145.47,15.06582483]
[1750319495218,5.1372369,145.48,145.47,15.06582483]
[1750319502815,9.91377189,145.48,145.47,15.06582483]
[1750319504024,9.91377189,145.48,145.46,6.87454071]
[1750319504217,5.1372369,145.47,145.46,6.87454071]
[1750319507738,9.91706314,145.47,145.46,6.87454071]
[1750319508638,9.91757765,145.47,145.46,6.87454071]
[1750319509041,9.9177849,145.47,145.46,6.87454071]
[1750319510431,9.9177849,145.47,145.45,8.19155523]
[1750319510432,9.9177849,145.47,145.44,8.19155523]
[1750319510637,8.19155523,145.45,145.41,6.87710611]
[1750319510858,15.16397032,145.44,145.41,6.87710611]
[1750319511031,5.1372369,145.43,145.41,6.87710611]
[1750319511226,18.64964886,145.44,145.41,6.87710611]
[1750319511463,5.1351293,145.43,145.41,6.87710611]
[1750319511680,18.64964886,145.44,145.41,6.87710611]
[1750319511961,18.64964886,145.47,145.43,5.24806044]
[1750319512167,9.91317704,145.46,145.43,5.24806044]
[1750319512368,9.91317704,145.45,145.43,5.24806044]
[1750319512571,5.13405847,145.44,145.43,5.24806044]
[1750319512730,4.77792086,145.46,145.43,12.12422079]
[1750319512928,9.91142999,145.45,145.43,15.072723]
[1750319513143,26.84621151,145.47,145.43,15.072723]
[1750319513360,9.91292521,145.46,145.43,15.072723]
[1750319513559,9.91292521,145.45,145.43,15.072723]
[1750319513746,26.84621151,145.47,145.43,15.072723]
[1750319513946,9.91262709,145.46,145.43,15.072723]
[1750319514131,9.91262709,145.45,145.43,15.072723]
[1750319514336,26.84621151,145.47,145.43,15.072723]
[1750319514551,9.91262709,145.46,145.42,8.19656265]
[1750319514743,18.10918974,145.45,145.4,15.07414174]
[1750319514944,36.7588386,145.44,145.4,15.07414174]
[1750319515258,9.91262709,145.43,145.4,15.07414174]
[1750319515451,8.19656265,145.44,145.4,15.07414174]
[1750319515661,9.91086032,145.43,145.4,15.07414174]
[1750319515849,5.13195256,145.42,145.4,15.07414174]
[1750319516050,8.19656265,145.44,145.4,15.07414174]
[1750319516251,9.90920194,145.43,145.4,15.07414174]
[1750319516561,5.13034207,145.42,145.4,15.07414174]
[1750319516753,8.19656265,145.44,145.4,15.07414174]
[1750319516952,5.12905312,145.43,145.4,15.07414174]
[1750319517141,5.12905312,145.42,145.4,15.07414174]
[1750319517341,8.19656265,145.44,145.4,15.07414174]
[1750319517558,5.12905312,145.43,145.4,15.07414174]
[1750319517762,8.19656265,145.44,145.4,15.07414174]
[1750319517963,5.12784248,145.43,145.4,15.07414174]
[1750319518153,8.19656265,145.44,145.4,15.07414174]
[1750319518465,5.12781173,145.43,145.4,15.07414174]
[1750319518637,6.42743723,145.47,145.42,8.19656265]
[1750319518840,6.42743723,145.5,145.46,8.19656265]
[1750319519044,5.12846376,145.49,145.47,8.19656265]
[1750319519249,5.12846376,145.48,145.47,8.19656265]
[1750319520058,9.91478178,145.48,145.47,15.07083225]
[1750319520267,9.91478178,145.48,145.47,6.8742696]
[1750319520456,5.12846376,145.48,145.47,6.8742696]
[1750319520665,9.91479162,145.48,145.47,6.8742696]
[1750319523576,5.12846376,145.48,145.47,6.8742696]
[1750319523776,9.91348086,145.48,145.47,6.8742696]
[1750319524883,5.12846376,145.48,145.47,15.07083225]
[1750319525186,4.78240984,145.49,145.47,15.07083225]
[1750319525388,26.0,145.5,145.47,15.07083225]
[1750319525554,9.90923248,145.49,145.47,15.07083225]
[1750319525744,26.0,145.5,145.47,6.8742696]
[1750319525949,9.90702826,145.49,145.47,6.8742696]
[1750319526253,26.0,145.5,145.47,15.07083225]
[1750319526454,9.90706408,145.49,145.47,15.07083225]
[1750319526764,26.0,145.5,145.47,15.07083225]
[1750319527059,9.90635771,145.49,145.47,15.07083225]
[1750319527257,26.0,145.5,145.47,15.07083225]
[1750319527452,9.90635771,145.49,145.44,24.06376012]
[1750319527674,26.0,145.5,145.47,8.19656265]
[1750319527872,9.90680304,145.49,145.47,8.19656265]
[1750319528078,26.0,145.5,145.47,8.19656265]
[1750319528264,9.9065177,145.49,145.47,8.19656265]
[1750319528578,26.0,145.5,145.47,8.19656265]
[1750319528763,9.90645154,145.49,145.47,8.19656265]
[1750319529060,26.0,145.5,145.47,8.19656265]
[1750319529262,9.90686299,145.49,145.47,8.19656265]
[1750319529460,27.76,145.51,145.48,6.87379708]
[1750319529658,9.90716232,145.5,145.48,15.07035973]
[1750319529856,9.90716232,145.49,145.48,15.07035973]
[1750319532487,9.90716232,145.49,145.48,6.87379708]
[1750319535560,9.90716232,145.49,145.48,15.07035973]
[1750319535760,6.42743723,145.53,145.48,32.25485244]
[1750319535983,9.90505362,145.52,145.51,8.19656265]
[1750319537065,9.90505362,145.52,145.51,15.06894255]
[1750319537289,9.91937659,145.52,145.51,15.06894255]
[1750319538888,9.91937659,145.52,145.51,6.8723799]
[1750319539192,9.91937659,145.52,145.51,15.06894255]
[1750319542506,5.1272432,145.52,145.51,15.06894255]
[1750319542671,5.1272432,145.52,145.51,8.19656265]
[1750319542870,9.91450527,145.53,145.51,8.19656265]
[1750319543191,9.91450527,145.52,145.51,8.19656265]
[1750319543392,5.1272432,145.52,145.51,8.19656265]
[1750319543596,9.91450527,145.53,145.51,8.19656265]
[1750319543894,9.91450527,145.52,145.51,6.8723799]
[1750319544089,80.58621151,145.55,145.51,15.06894255]
[1750319544090,9.90811982,145.54,145.51,15.06894255]
[1750319544386,9.90811982,145.53,145.51,15.06894255]
[1750319544593,5.1272432,145.52,145.51,15.06894255]
[1750319544894,9.90742008,145.54,145.51,15.06894255]
[1750319545075,9.90742008,145.53,145.51,15.06894255]
[1750319545277,5.1272432,145.52,145.51,15.06894255]
[1750319545490,9.90786619,145.54,145.51,15.06894255]
[1750319545795,9.90786619,145.53,145.51,15.06894255]
[1750319545992,18.64964886,145.54,145.5,8.19656265]
[1750319546303,9.89991651,145.53,145.51,8.19656265]
[1750319546469,46.36964886,145.55,145.52,8.19656265]
[1750319546676,9.89938836,145.54,145.52,8.19656265]
[1750319546876,9.89938836,145.53,145.52,8.19656265]
[1750319547479,9.89938836,145.55,145.52,8.19656265]
[1750319547674,9.89938836,145.54,145.48,105.38449271]
[1750319547876,9.89865568,145.56,145.53,8.19656265]
[1750319548113,9.89865568,145.55,145.54,15.06752595]
[1750319548686,5.11876508,145.55,145.54,15.06752595]
[1750319548889,5.82,145.57,145.54,15.06752595]
[1750319549099,9.89605084,145.56,145.54,15.06752595]
[1750319549287,5.11775199,145.55,145.54,15.06752595]
[1750319549496,9.89561234,145.56,145.54,6.8709633]
[1750319549803,9.89561234,145.55,145.54,6.8709633]
[1750319549974,9.89561234,145.56,145.54,6.8709633]
[1750319550170,9.89561234,145.55,145.54,6.8709633]
[1750319550395,9.89561234,145.56,145.54,6.8709633]
[1750319550696,4.77786035,145.56,145.54,6.8709633]
[1750319550898,5.1151863,145.55,145.54,6.8709633]
[1750319551075,9.89405426,145.56,145.54,6.8709633]
[1750319552498,18.64964886,145.54,145.49,8.19656265]
[1750319552675,8.19656265,145.52,145.48,6.87379708]
[1750319552992,45.81816414,145.52,145.48,6.87379708]
[1750319553181,36.72694124,145.51,145.47,6.8740619]
[1750319553387,31.95857891,145.51,145.47,6.8740619]
[1750319553789,9.88025964,145.5,145.47,15.07062455]
[1750319553974,31.95857891,145.51,145.47,15.07062455]
[1750319554983,23.76201626,145.51,145.47,15.07062455]
[1750319555179,31.95857891,145.51,145.47,15.07062455]
[1750319556079,5.1123674,145.51,145.47,6.8740619]
[1750319556383,41.04952717,145.52,145.48,8.19656265]
[1750319557591,41.04952717,145.52,145.49,6.87332462]
[1750319558109,4.78306807,145.51,145.49,6.87332462]
[1750319558687,4.78270322,145.51,145.49,6.87332462]
[1750319559490,41.05074368,145.52,145.49,6.87332462]
[1750319559698,4.7853823,145.51,145.49,6.87332462]
[1750319559993,35.93656265,145.52,145.49,6.87332462]
[1750319560207,4.7853823,145.51,145.49,6.87332462]
[1750319560501,35.93656265,145.52,145.49,6.87332462]
[1750319560808,9.90106304,145.51,145.49,6.87332462]
[1750319561012,5.11620526,145.51,145.49,6.87332462]
[1750319561798,35.93656265,145.52,145.49,6.87332462]
[1750319561994,9.90077674,145.51,145.49,6.87332462]
[1750319562197,35.93656265,145.52,145.49,6.87332462]
[1750319562400,9.89988784,145.51,145.49,6.87332462]
[1750319562599,35.93656265,145.52,145.49,6.87332462]
[1750319562795,9.90454675,145.51,145.49,6.87332462]
[1750319563114,35.93656265,145.52,145.49,6.87332462]
[1750319563415,36.75075847,145.51,145.47,8.19656265]
[1750319563621,26.84621151,145.51,145.47,8.19656265]
[1750319563794,5.12438949,145.5,145.47,8.19656265]
[1750319563994,26.84621151,145.51,145.47,8.19656265]
[1750319564301,5.12438949,145.5,145.47,8.19656265]
[1750319564611,26.84621151,145.51,145.48,6.87379708]
[1750319564816,5.12478491,145.5,145.48,6.87379708]
[1750319565000,26.84621151,145.51,145.48,6.87379708]
[1750319565223,5.12478556,145.5,145.48,6.87379708]
[1750319565405,26.84621151,145.51,145.48,6.87379708]
[1750319565594,5.12478491,145.5,145.48,6.87379708]
[1750319565794,26.84621151,145.51,145.48,6.87379708]
[1750319566005,5.12497701,145.5,145.48,6.87379708]
[1750319566186,18.64964886,145.51,145.48,8.19656265]
[1750319566392,5.12497701,145.5,145.48,8.19656265]
[1750319566596,18.64964886,145.51,145.48,8.19656265]
[1750319566799,5.12520473,145.5,145.48,8.19656265]
[1750319566997,18.64964886,145.51,145.48,8.19656265]
[1750319567214,5.12537599,145.5,145.48,8.19656265]
[1750319567512,18.64964886,145.51,145.49,6.87332462]
[1750319567720,9.8996471,145.5,145.49,6.87332462]
[1750319568608,5.12581856,145.5,145.49,6.87332462]
[1750319568916,9.90031252,145.5,145.49,6.87332462]
[1750319569222,5.12581856,145.5,145.49,6.87332462]
[1750319572504,5.12776534,145.5,145.49,15.06988727]
[1750319573714,5.12809437,145.5,145.49,15.06988727]
[1750319574324,5.12809437,145.5,145.49,6.87332462]
[1750319580533,9.90702031,145.5,145.49,6.87332462]
[1750319580908,5.12809437,145.5,145.49,6.87332462]
[1750319581115,9.90728894,145.5,145.49,6.87332462]
[1750319588331,5.12809437,145.5,145.49,6.87332462]
[1750319588627,9.90650746,145.5,145.49,6.87332462]
[1750319589832,5.12809437,145.5,145.49,12.115373]